bitfinex-derivatives/quotes_SOLF0:USTF0_20240912
["timestamp","ask_amount","ask_price","bid_price","bid_amount"]
[1726108805117,3.3253,135.31,135.29,11.35]
[1726108805517,3.3253,135.31,135.3,11.35]
[1726108805722,2.7308,135.37,135.3,11.35]
[1726108806017,2.7308,135.37,135.28,2.6162]
[1726108806219,3.70342914,135.38,135.34,11.35]
[1726108806410,102.91751389,135.39,135.35,11.35]
[1726108807018,106.58509505,135.39,135.35,11.35]
[1726108807213,106.58509505,135.39,135.33,1.2967]
[1726108807414,106.58509505,135.39,135.35,11.35]
[1726108807723,106.58509505,135.39,135.36,11.35]
[1726108808418,106.58509505,135.39,135.35,11.35]
[1726108809918,0.4241,135.48,135.37,11.35]
[1726108810118,11.35,135.44,135.37,11.35]
[1726108810321,1.17291711,135.43,135.37,11.35]
[1726108810522,4.9541354,135.43,135.37,11.35]
[1726108810717,1.17291711,135.42,135.37,11.35]
[1726108811023,17.85271829,135.43,135.36,11.35]
[1726108811214,1.17290268,135.42,135.36,11.35]
[1726108811820,3.3233,135.39,135.36,11.35]
[1726108813624,3.73539878,135.42,135.37,11.35]
[1726108813823,2.7215,135.43,135.38,11.35]
[1726108814533,3.3229,135.41,135.38,11.35]
[1726108815926,3.3229,135.4,135.38,11.35]
[1726108816430,3.3229,135.41,135.38,11.35]
[1726108820023,102.85820493,135.47,135.38,11.35]
[1726108820222,1.17243782,135.46,135.4,11.35]
[1726108820428,1.17243782,135.46,135.42,11.35]
[1726108820629,1.17243782,135.46,135.44,11.35]
[1726108822530,4.49393782,135.46,135.44,11.35]
[1726108823639,1.17243782,135.46,135.44,11.35]
[1726108826538,7.01175783,135.52,135.48,11.35]
[1726108826729,3.3202,135.52,135.48,11.35]
[1726108827337,3.3203,135.51,135.49,11.35]
[1726108827530,3.3203,135.51,135.48,11.35]
[1726108830236,3.3206,135.5,135.47,1.3756]
[1726108830434,3.3206,135.5,135.48,11.35]
[1726108831234,3.3204,135.51,135.48,11.35]
[1726108831834,3.65781063,135.52,135.48,11.35]
[1726108832044,14.0641,135.55,135.49,11.35]
[1726108832443,3.3203,135.51,135.49,11.35]
[1726108832836,14.0641,135.55,135.49,11.35]
[1726108833131,3.3199,135.53,135.5,11.35]
[1726108833338,3.74279709,135.54,135.5,11.35]
[1726108833537,3.3199,135.53,135.5,11.35]
[1726108835644,3.32,135.52,135.5,11.35]
[1726108836336,3.32,135.52,135.47,1.3756]
[1726108836845,3.32,135.52,135.5,11.35]
[1726108838947,3.74279709,135.54,135.51,11.35]
[1726108839140,0.4212,135.59,135.53,11.35]
[1726108839352,3.3195,135.54,135.53,11.35]
[1726108839646,0.4212,135.59,135.53,11.35]
[1726108839846,11.7712,135.59,135.53,11.35]
[1726108840043,3.3187,135.58,135.53,11.35]
[1726108840339,7.70634685,135.68,135.56,11.35]
[1726108840647,3.3184,135.59,135.56,11.35]
[1726108840840,3.68780481,135.58,135.56,11.35]
[1726108841535,1.3206,135.63,135.54,1.3711]
[1726108841536,12.6706,135.63,135.57,11.35]
[1726108841742,16.44308915,135.63,135.56,11.35]
[1726108841941,11.35,135.62,135.55,11.35]
[1726108843048,14.6677,135.62,135.55,14.669]
[1726108843249,11.35,135.62,135.55,11.35]
[1726108843552,11.35,135.62,135.56,11.35]
[1726108843847,3.3185,135.59,135.56,11.35]
[1726108846547,11.35,135.62,135.56,11.35]
[1726108846548,3.3186,135.58,135.56,11.35]
[1726108847252,3.3186,135.58,135.55,11.35]
[1726108848352,3.3184,135.59,135.56,11.35]
[1726108849344,3.3185,135.58,135.56,11.35]
[1726108850259,11.35,135.62,135.54,1.3711]
[1726108850443,11.35,135.6,135.55,11.35]
[1726108851749,3.3187,135.58,135.55,11.35]
[1726108852655,3.3187,135.58,135.54,1.3711]
[1726108852858,3.3187,135.58,135.54,12.7211]
[1726108854054,3.3188,135.57,135.54,1.3711]
[1726108854258,11.35,135.6,135.54,12.7211]
[1726108855261,5.09308915,135.63,135.55,11.35]
[1726108855559,11.35,135.61,135.55,11.35]
[1726108855951,3.3185,135.59,135.55,11.35]
[1726108856847,11.35,135.61,135.55,11.35]
[1726108857858,3.3183,135.59,135.55,11.35]
[1726108859358,3.3186,135.58,135.55,11.35]
[1726108860056,3.3184,135.59,135.55,11.35]
[1726108863056,11.35,135.61,135.55,11.35]
[1726108863255,11.35,135.6,135.54,12.7211]
[1726108863966,3.3183,135.59,135.54,12.7211]
[1726108864357,5.09308915,135.63,135.54,12.7211]
[1726108864562,11.35,135.61,135.54,12.7211]
[1726108865367,3.3184,135.59,135.54,16.0406]
[1726108865661,11.35,135.61,135.54,16.0406]
[1726108866857,3.3185,135.58,135.54,12.7211]
[1726108868467,3.3183,135.59,135.56,11.35]
[1726108869961,3.3183,135.59,135.54,16.0406]
[1726108870565,3.3185,135.58,135.54,4.6906]
[1726108870767,3.3185,135.58,135.54,12.7211]
[1726108871272,3.3184,135.59,135.54,16.0406]
[1726108872869,11.35,135.59,135.48,6.42952315]
[1726108873172,11.35,135.56,135.49,12.7676]
[1726108873371,3.60528573,135.56,135.51,11.35]
[1726108873673,14.6689,135.57,135.51,14.67]
[1726108873874,11.35,135.57,135.51,14.67]
[1726108874180,1.3539,135.59,135.53,11.35]
[1726108874473,5.09308915,135.63,135.54,11.35]
[1726108874664,3.3182,135.6,135.56,11.35]
[1726108876172,11.35,135.62,135.56,11.35]
[1726108877668,3.3181,135.6,135.56,11.35]
[1726108878571,5.09308915,135.63,135.58,11.35]
[1726108878781,16.44308915,135.63,135.58,11.35]
[1726108878971,15.12248915,135.63,135.58,11.35]
[1726108879376,3.3178,135.61,135.58,11.35]
[1726108881679,3.3178,135.61,135.56,11.35]
[1726108881875,3.3181,135.6,135.55,1.3894]
[1726108882182,3.3181,135.6,135.55,12.7394]
[1726108882375,7.05748843,135.6,135.55,12.7394]
[1726108882580,3.3181,135.6,135.55,16.0587]
[1726108883176,7.06043951,135.6,135.55,16.0587]
[1726108883782,3.3179,135.61,135.56,3.319]
[1726108883983,3.3179,135.61,135.57,11.35]
[1726108884184,6.99384141,135.61,135.57,11.35]
[1726108885584,3.3182,135.6,135.57,11.35]
[1726108885790,3.3182,135.6,135.55,18.8644]
[1726108886487,6.99374141,135.61,135.56,3.319]
[1726108887478,6.99374141,135.61,135.57,11.35]
[1726108889198,3.3176,135.62,135.57,14.6687]
[1726108889687,3.63131077,135.62,135.57,11.35]
[1726108889887,3.3178,135.61,135.57,11.35]
[1726108890588,6.94891077,135.62,135.57,14.6687]
[1726108893495,3.63131077,135.62,135.57,11.35]
[1726108894691,6.94901077,135.62,135.57,14.6687]
[1726108894893,3.63131077,135.62,135.57,11.35]
[1726108896095,6.94901077,135.62,135.57,14.6687]
[1726108896599,3.63131077,135.62,135.57,11.35]
[1726108896784,3.3179,135.61,135.57,11.35]
[1726108896989,3.63131077,135.62,135.57,11.35]
[1726108897189,11.35,135.62,135.55,15.5452]
[1726108897395,3.61813413,135.61,135.55,15.5452]
[1726108898401,11.35,135.61,135.55,15.5452]
[1726108898583,6.96178277,135.6,135.55,15.5452]
[1726108898787,3.64358277,135.6,135.55,4.1952]
[1726108898993,11.35,135.6,135.55,1.3894]
[1726108899187,3.3185,135.58,135.55,1.3894]
[1726108900499,3.3188,135.57,135.53,11.35]
[1726108900894,3.3191,135.56,135.51,11.35]
[1726108901394,3.3193,135.55,135.51,11.35]
[1726108901695,3.60327831,135.56,135.5,12.6505]
[1726108901907,3.60327831,135.56,135.52,11.35]
[1726108902199,11.35,135.57,135.52,11.35]
[1726108902398,3.70840005,135.56,135.52,11.35]
[1726108902795,7.02750005,135.56,135.52,11.35]
[1726108903100,1.3234,135.61,135.55,11.35]
[1726108903305,12.6734,135.61,135.55,11.35]
[1726108904592,4.6413,135.61,135.56,11.35]
[1726108905194,3.3181,135.6,135.56,11.35]
[1726108907900,3.3178,135.61,135.56,11.35]
[1726108908898,3.318,135.6,135.56,11.35]
[1726108909300,27.78619789,135.63,135.56,11.35]
[1726108909496,3.3181,135.6,135.56,11.35]
[1726108909700,16.43619789,135.61,135.56,11.35]
[1726108909901,3.3178,135.61,135.56,11.35]
[1726108910100,19.75399789,135.61,135.56,11.35]
[1726108910399,3.3178,135.61,135.56,11.35]
[1726108910806,3.3178,135.61,135.56,14.669]
[1726108911506,16.43578206,135.61,135.57,11.35]
[1726108911799,16.32625764,135.64,135.57,11.35]
[1726108912103,32.76143755,135.64,135.57,11.35]
[1726108912298,20.12513755,135.64,135.59,11.35]
[1726108913911,3.3173,135.63,135.59,11.35]
[1726108916109,20.12513755,135.64,135.59,14.6681]
[1726108916110,23.44223755,135.64,135.59,14.6681]
[1726108916411,1.16156379,135.63,135.59,11.35]
[1726108916707,4.47886379,135.63,135.59,11.35]
[1726108917008,3.3173,135.63,135.59,11.35]
[1726108917209,1.16157107,135.62,135.59,11.35]
[1726108917597,3.3173,135.63,135.59,11.35]
[1726108918213,3.3173,135.63,135.6,11.35]
[1726108918707,2.67,135.67,135.56,6.53918081]
[1726108918708,7.59103662,135.78,135.62,11.35]
[1726108919011,11.35,135.69,135.62,11.35]
[1726108919221,3.3166,135.67,135.62,12.7569]
[1726108919510,1.16125852,135.66,135.64,11.35]
[1726108919715,11.35,135.69,135.64,11.35]
[1726108919896,1.16110528,135.68,135.64,11.35]
[1726108920099,1.3846,135.71,135.66,11.35]
[1726108920314,1.16077457,135.7,135.63,3.72676592]
[1726108920610,1.16077457,135.7,135.64,11.35]
[1726108920611,11.35,135.7,135.64,11.35]
[1726108920815,11.35,135.7,135.62,1.4069]
[1726108921003,12.51088912,135.69,135.62,12.7569]
[1726108921311,11.35,135.69,135.62,12.7569]
[1726108922012,11.35,135.67,135.62,1.4069]
[1726108922305,3.3169,135.65,135.62,1.4069]
[1726108922510,11.35,135.66,135.62,1.4069]
[1726108922717,14.99076443,135.66,135.62,1.4069]
[1726108923607,3.317,135.65,135.62,1.4069]
[1726108923907,3.64076443,135.66,135.62,1.4069]
[1726108924113,1.3846,135.71,135.62,1.4069]
[1726108924114,3.3163,135.67,135.62,1.4069]
[1726108924313,3.70712773,135.66,135.62,1.4069]
[1726108925104,7.02372773,135.66,135.62,1.4069]
[1726108926206,3.70712773,135.66,135.62,1.4069]
[1726108926405,17.69,135.69,135.62,1.4069]
[1726108926607,21.45160185,135.69,135.62,1.4069]
[1726108926814,3.3165,135.67,135.62,1.4069]
[1726108928914,3.3166,135.66,135.62,1.4069]
[1726108929110,21.45160185,135.69,135.62,1.4069]
[1726108929314,3.3168,135.66,135.62,1.4069]
[1726108929613,21.45160185,135.69,135.62,1.4069]
[1726108930109,3.3169,135.65,135.62,1.4069]
[1726108930314,21.45160185,135.69,135.62,1.4069]
[1726108930517,1.16113108,135.68,135.59,17.69]
[1726108930817,3.317,135.65,135.59,19.0813]
[1726108931015,3.317,135.65,135.6,3.318]
[1726108931206,1.345,135.67,135.59,19.0813]
[1726108932911,3.3169,135.65,135.6,3.318]
[1726108933110,1.345,135.67,135.59,19.0813]
[1726108933311,4.6616,135.67,135.61,3.3178]
[1726108933513,1.345,135.67,135.59,19.0813]
[1726108933909,3.317,135.65,135.59,22.3994]
[1726108935015,3.317,135.65,135.6,3.318]
[1726108936919,1.345,135.67,135.6,3.318]
[1726108936920,3.3166,135.66,135.6,3.318]
[1726108937514,17.69,135.7,135.59,19.0813]
[1726108937719,3.72473063,135.69,135.64,17.69]
[1726108937921,3.316,135.69,135.64,17.69]
[1726108938114,6.92126788,135.69,135.64,17.69]
[1726108938822,6.92126788,135.69,135.64,21.0071]
[1726108939007,6.92126788,135.69,135.65,1.3639]
[1726108939926,103.96239932,135.73,135.66,17.69]
[1726108940121,3.66981437,135.72,135.66,17.69]
[1726108940415,105.98499932,135.73,135.68,17.69]
[1726108940818,109.67988123,135.73,135.68,17.69]
[1726108941019,3.3153,135.72,135.68,17.69]
[1726108941614,3.3157,135.7,135.68,17.69]
[1726108941908,106.36498123,135.73,135.68,17.69]
[1726108942222,102.67009932,135.73,135.68,21.0061]
[1726108942621,106.26429371,135.73,135.68,21.0061]
[1726108943315,109.57929371,135.73,135.68,17.69]
[1726108943520,106.26429371,135.73,135.68,17.69]
[1726108944022,3.3153,135.72,135.68,17.69]
[1726108944212,106.26429371,135.73,135.68,17.69]
[1726108944213,3.59419439,135.73,135.68,17.69]
[1726108944413,17.69,135.77,135.68,17.69]
[1726108944615,1.16033626,135.76,135.68,21.0061]
[1726108944815,4.89346342,135.76,135.68,21.0061]
[1726108945022,3.73312716,135.76,135.68,21.0061]
[1726108945213,3.3148,135.74,135.68,21.0061]
[1726108945415,3.70521487,135.73,135.68,21.0061]
[1726108946015,7.02011487,135.73,135.68,17.69]
[1726108946322,7.02011487,135.73,135.67,3.3163]
[1726108946323,7.02011487,135.73,135.7,11.33]
[1726108947825,11.33,135.76,135.7,11.33]
[1726108948115,1.16029268,135.75,135.7,11.33]
[1726108948320,3.3149,135.73,135.7,11.33]
[1726108952026,11.33,135.75,135.66,1.4096]
[1726108952227,12.49030971,135.74,135.66,1.4096]
[1726108952420,1.16030971,135.73,135.67,11.33]
[1726108952618,1.16030971,135.73,135.68,11.33]
[1726108952927,14.98473109,135.76,135.7,11.33]
[1726108953220,3.3151,135.73,135.7,11.33]
[1726108954223,3.3153,135.71,135.69,11.33]
[1726108954431,11.33,135.75,135.69,11.33]
[1726108956320,3.315,135.73,135.69,11.33]
[1726108956825,11.33,135.75,135.69,11.33]
[1726108958538,3.3153,135.72,135.69,11.33]
[1726108959235,6.948284,135.71,135.66,2.8168]
[1726108959436,6.948284,135.71,135.68,11.33]
[1726108960534,6.948284,135.71,135.66,1.4096]
[1726108960728,6.948284,135.71,135.67,11.33]
[1726108962735,6.40802502,135.78,135.69,11.33]
[1726108962932,11.33,135.76,135.7,1.4]
[1726108963434,3.3148,135.74,135.7,1.4]
[1726108965037,3.3149,135.73,135.7,1.4]
[1726108965537,6.40802502,135.78,135.7,12.73]
[1726108965738,1.1602122,135.77,135.72,11.33]
[1726108966031,1.1602122,135.77,135.73,11.33]
[1726108966333,3.3144,135.75,135.73,11.33]
[1726108966538,3.3144,135.75,135.7,4.7155]
[1726108966539,11.33,135.77,135.71,11.33]
[1726108968126,3.3146,135.75,135.71,11.33]
[1726108970142,3.3142,135.76,135.71,11.33]
[1726108971440,11.33,135.77,135.71,11.33]
[1726108971441,3.3144,135.75,135.71,11.33]
[1726108971829,3.3142,135.76,135.71,11.33]
[1726108972039,3.3142,135.76,135.71,14.6453]
[1726108972635,3.3144,135.75,135.71,11.33]
[1726108973032,3.3146,135.75,135.71,11.33]
[1726108973437,11.33,135.77,135.71,11.33]
[1726108973644,11.33,135.76,135.7,12.73]
[1726108973831,3.3148,135.74,135.7,12.73]
[1726108975230,3.3144,135.75,135.7,12.73]
[1726108975431,3.3144,135.75,135.7,16.0455]
[1726108976741,3.3146,135.74,135.7,12.73]
[1726108980047,3.3153,135.72,135.7,1.4]
[1726108980444,3.59486453,135.71,135.66,12.7396]
[1726108980645,11.33,135.73,135.66,12.7396]
[1726108981049,3.3154,135.71,135.66,12.7396]
[1726108981259,6.93107064,135.71,135.66,12.7396]
[1726108982050,6.93107064,135.71,135.66,16.056]
[1726108982642,3.61567064,135.71,135.66,1.4096]
[1726108982843,11.33,135.73,135.67,11.33]
[1726108983052,3.3155,135.71,135.67,11.33]
[1726108983354,7.04171907,135.71,135.67,11.33]
[1726108983654,3.3155,135.71,135.67,11.33]
[1726108984053,6.40802502,135.78,135.68,14.6459]
[1726108984252,6.40802502,135.78,135.7,11.33]
[1726108984253,11.33,135.76,135.7,11.33]
[1726108984444,11.33,135.76,135.71,11.33]
[1726108984958,3.3144,135.75,135.71,11.33]
[1726108985156,11.33,135.77,135.71,11.33]
[1726108985358,3.3141,135.76,135.71,14.6452]
[1726108986350,3.3141,135.76,135.71,11.33]
[1726108987249,3.3144,135.75,135.71,11.33]
[1726108987853,3.3144,135.75,135.7,14.6455]
[1726108988951,3.3144,135.75,135.7,11.33]
[1726108990947,3.3144,135.75,135.7,16.057]
[1726108996562,6.40802502,135.78,135.71,11.33]
[1726108996563,3.3139,135.77,135.71,11.33]
[1726108996955,3.68632502,135.78,135.71,11.33]
[1726108997157,11.33,135.79,135.71,11.33]
[1726108997364,14.98060402,135.79,135.71,11.33]
[1726108997566,3.3138,135.78,135.72,3.315]
[1726108998061,14.98060402,135.79,135.72,3.315]
[1726108998464,3.3141,135.77,135.71,14.6453]
[1726108998855,3.3141,135.77,135.73,11.33]
[1726108999050,3.3137,135.78,135.73,11.33]
[1726108999463,11.33,135.77,135.7,12.7414]
[1726109000464,11.33,135.76,135.7,12.7414]
[1726109001057,3.3144,135.75,135.7,12.7414]
[1726109001260,6.96731702,135.75,135.7,12.7414]
[1726109001459,11.33,135.76,135.7,1.4114]
[1726109001770,3.3148,135.74,135.7,1.4114]
[1726109003860,3.3149,135.73,135.7,1.4114]
[1726109006053,3.3151,135.72,135.7,1.4114]
[1726109006255,11.33,135.74,135.7,1.4114]
[1726109006457,15.02435237,135.74,135.7,1.4114]
[1726109006663,3.3153,135.71,135.7,1.4114]
[1726109007366,3.69435237,135.74,135.7,1.4114]
[1726109007566,11.33,135.76,135.7,1.4114]
[1726109007766,1.16014975,135.75,135.7,1.4114]
[1726109008062,3.74003898,135.74,135.7,1.4114]
[1726109008566,11.33,135.76,135.7,1.4114]
[1726109008763,1.16014957,135.75,135.7,1.4114]
[1726109008961,3.3148,135.74,135.7,1.4114]
[1726109011959,3.3148,135.74,135.7,4.7269]
[1726109012371,3.3148,135.74,135.7,16.0569]
[1726109012766,3.3148,135.74,135.7,12.7414]
[1726109013265,3.3149,135.73,135.7,1.4114]
[1726109013573,11.33,135.75,135.7,1.4114]
[1726109013769,3.3148,135.74,135.7,1.4114]
[1726109014569,3.3148,135.74,135.71,11.33]
[1726109015770,3.3144,135.75,135.71,11.33]
[1726109018171,3.3144,135.75,135.7,4.727]
[1726109018671,3.3147,135.74,135.7,1.4114]
[1726109018873,14.6447,135.74,135.7,1.4114]
[1726109019175,3.3149,135.73,135.7,1.4114]
[1726109024968,14.6448,135.74,135.7,1.4114]
[1726109025169,14.6448,135.74,135.7,4.7269]
[1726109025569,3.3148,135.74,135.7,4.7269]
[1726109025880,3.3145,135.75,135.7,4.7269]
[1726109026778,3.3146,135.74,135.7,4.7269]
[1726109026976,15.05051164,135.76,135.7,4.7269]
[1726109027571,3.3144,135.75,135.7,4.7269]
[1726109029876,3.3147,135.74,135.7,1.4114]
[1726109031379,14.6447,135.74,135.7,1.4114]
[1726109031783,14.6447,135.74,135.7,4.727]
[1726109032175,14.6447,135.74,135.7,1.4114]
[1726109038088,14.6452,135.72,135.67,3.3162]
[1726109038285,11.33,135.72,135.66,14.0449]
[1726109038593,11.33,135.74,135.68,11.33]
[1726109038790,3.315,135.73,135.68,14.6459]
[1726109039088,3.69794224,135.72,135.68,14.6459]
[1726109039504,7.01304224,135.72,135.68,14.6459]
[1726109040393,3.69794224,135.72,135.68,14.6459]
[1726109040600,3.3149,135.73,135.68,14.6459]
[1726109041106,3.6036051,135.72,135.68,14.6459]
[1726109042201,3.6036051,135.72,135.68,3.3159]
[1726109042405,6.9187051,135.72,135.68,3.3159]
[1726109042799,3.3154,135.71,135.67,3.3163]
[1726109043000,11.33,135.72,135.66,1.3505]
[1726109043200,11.33,135.72,135.65,12.6495]
[1726109043406,14.6452,135.72,135.67,14.6461]
[1726109044106,14.6452,135.72,135.68,3.316]
[1726109044507,18.36893756,135.72,135.68,3.316]
[1726109046005,15.05373756,135.72,135.68,3.316]
[1726109047011,3.3154,135.71,135.67,14.6462]
[1726109047309,3.3154,135.71,135.67,11.33]
[1726109047811,18.36883756,135.72,135.67,14.6462]
[1726109048198,18.36883756,135.72,135.67,11.33]
[1726109048402,18.36883756,135.72,135.68,3.316]
[1726109049001,18.36883756,135.72,135.67,14.6463]
[1726109049607,18.36883756,135.72,135.67,3.3163]
[1726109050214,15.05373756,135.72,135.66,12.6952]
[1726109050416,15.05373756,135.72,135.67,11.33]
[1726109050417,3.72373756,135.72,135.67,11.33]
[1726109050613,11.33,135.73,135.67,11.33]
[1726109051222,18.23975745,135.73,135.68,3.3159]
[1726109051405,14.92465745,135.73,135.68,3.3159]
[1726109051805,18.23955745,135.73,135.68,3.3159]
[1726109053320,3.59465745,135.73,135.69,3.3158]
[1726109053519,14.6446,135.74,135.69,3.3158]
[1726109054015,14.6446,135.74,135.68,11.33]
[1726109054016,3.69416099,135.73,135.7,3.3156]
[1726109054519,11.33,135.74,135.7,3.3156]
[1726109054820,102.62817037,135.77,135.71,11.33]
[1726109055418,106.32233136,135.77,135.72,11.33]
[1726109055610,106.32233136,135.77,135.66,1.3652]
[1726109055806,106.32233136,135.77,135.72,11.33]
[1726109056212,106.32233136,135.77,135.73,3.3148]
[1726109057414,0.4223,135.84,135.75,11.33]
[1726109057620,11.33,135.81,135.75,11.33]
[1726109057815,3.313,135.81,135.75,14.6443]
[1726109058021,14.643,135.81,135.75,14.6443]
[1726109058212,3.2445,135.84,135.75,11.33]
[1726109058413,4.47223397,135.83,135.76,11.33]
[1726109058613,14.6425,135.83,135.76,11.33]
[1726109059217,14.6428,135.82,135.76,3.3141]
[1726109059415,14.6428,135.82,135.76,14.6441]
[1726109060016,14.6426,135.83,135.77,3.3137]
[1726109060322,11.33,135.83,135.76,11.33]
[1726109060622,2.8222,135.84,135.76,11.33]
[1726109060822,11.33,135.82,135.76,11.33]
[1726109061315,14.6427,135.82,135.77,3.3139]
[1726109061516,14.6427,135.82,135.76,11.33]
[1726109061919,14.6427,135.82,135.76,14.644]
[1726109062113,3.71712364,135.81,135.76,14.644]
[1726109062622,3.3132,135.8,135.76,11.33]
[1726109062825,14.6432,135.8,135.75,14.6443]
[1726109063022,3.59337911,135.79,135.73,1.4247]
[1726109063320,3.3137,135.78,135.73,16.0695]
[1726109063627,11.33,135.78,135.73,1.4247]
[1726109064410,3.314,135.77,135.73,1.4247]
[1726109064619,11.33,135.78,135.73,1.4247]
[1726109065127,11.33,135.76,135.67,3.73626534]
[1726109065422,3.3144,135.75,135.71,3.3153]
[1726109066015,3.3144,135.75,135.7,11.33]
[1726109066312,3.3144,135.75,135.71,3.3153]
[1726109066621,3.3146,135.74,135.69,11.33]
[1726109066824,3.3146,135.74,135.7,3.3156]
[1726109067723,3.3146,135.74,135.69,14.6457]
[1726109067924,3.315,135.73,135.69,14.6457]
[1726109068116,15.04637395,135.73,135.68,11.33]
[1726109068523,3.3153,135.72,135.68,3.3159]
[1726109069417,3.3154,135.71,135.67,14.6463]
[1726109073729,3.316,135.69,135.66,1.3418]
[1726109073929,11.33,135.71,135.66,1.3418]
[1726109074332,3.3155,135.71,135.67,3.3162]
[1726109074633,6.92859118,135.71,135.67,3.3162]
[1726109074933,3.3156,135.7,135.66,15.9883]
[1726109075828,3.61309118,135.71,135.66,12.6718]
[1726109076031,11.33,135.71,135.66,1.3418]
[1726109076238,15.0973089,135.71,135.66,1.3418]
[1726109077936,3.3156,135.7,135.66,4.6584]
[1726109079633,18.4127089,135.71,135.66,4.6584]
[1726109079932,15.0973089,135.71,135.66,4.6584]
[1726109080834,3.3156,135.7,135.66,4.6584]
[1726109082330,18.4127089,135.71,135.66,4.6584]
[1726109082936,18.4127089,135.71,135.66,15.9884]
[1726109083142,7.0827089,135.71,135.67,3.3163]
[1726109083740,3.7673089,135.71,135.67,3.3163]
[1726109084036,14.6452,135.72,135.67,3.3163]
[1726109084535,18.40634246,135.72,135.67,3.3163]
[1726109086843,3.3154,135.71,135.66,15.9883]
[1726109087337,14.6457,135.7,135.66,1.3418]
[1726109087644,11.33,135.7,135.66,1.3418]
[1726109088345,15.09114246,135.72,135.66,1.3418]
[1726109088542,11.33,135.72,135.66,1.3418]
[1726109089134,3.69249343,135.71,135.66,1.3418]
[1726109089341,3.69249343,135.71,135.67,3.3162]
[1726109089741,14.6453,135.72,135.67,3.3162]
[1726109089942,3.66927484,135.71,135.67,3.3162]
[1726109090144,14.6453,135.72,135.67,3.3162]
[1726109090450,3.73155964,135.71,135.67,3.3162]
[1726109091744,3.3156,135.71,135.66,4.6583]
[1726109091949,3.68807084,135.7,135.66,4.6583]
[1726109094154,7.00367084,135.7,135.66,4.6583]
[1726109094450,3.3156,135.7,135.66,4.6583]
[1726109094953,7.04246229,135.7,135.66,4.6583]
[1726109096656,3.3156,135.7,135.67,3.3163]
[1726109096851,3.3154,135.71,135.67,3.3163]
[1726109097150,6.91438518,135.71,135.67,3.3163]
[1726109100254,3.3156,135.7,135.66,4.6583]
[1726109100555,3.59898518,135.71,135.66,4.6583]
[1726109100754,3.3154,135.71,135.66,4.6583]
[1726109100954,3.77578553,135.7,135.66,4.6583]
[1726109101357,3.3154,135.71,135.66,4.6583]
[1726109101648,3.3154,135.71,135.6,1.409]
[1726109101649,11.33,135.67,135.6,1.409]
[1726109101853,11.33,135.67,135.61,12.6916]
[1726109102042,14.6459,135.69,135.65,3.3168]
[1726109102449,11.33,135.68,135.62,11.33]
[1726109102655,11.33,135.68,135.64,3.3169]
[1726109103061,15.08293549,135.68,135.62,11.33]
[1726109103758,3.75293549,135.68,135.62,11.33]
[1726109104053,12.7316,135.7,135.64,11.33]
[1726109104463,6.99576824,135.69,135.65,3.3168]
[1726109104853,3.67976824,135.69,135.64,11.33]
[1726109105351,3.67976824,135.69,135.64,14.6469]
[1726109105561,3.67976824,135.69,135.63,11.33]
[1726109106557,6.99576824,135.69,135.65,3.3168]
[1726109108262,6.99576824,135.69,135.64,3.317]